[Event "January 2 Early 2024"]
[Site "https://www.chess.com"]
[Date "2024.01.02"]
[Round "3"]
[White "Murthy, Pappu"]
[Black "Weisz, Bryan"]
[Result "0-1"]
[Board "170"]
[TimeControl "180+1"]
[WhiteFideId "2013401"]
[BlackFideId "30934133"]
[WhiteElo "1990"]
[BlackElo "2502"]
[WhiteTeam "USA"]
[BlackTeam "USA"]
[WhiteClock "0:00:38"]
[BlackClock "0:00:44"]

1. e4 {[%clk 0:03:00]}  c5 {[%clk 0:03:00]} 2. Nf3 {[%clk 0:02:59]}  Nc6 {[%clk 0:03:00]} 3. d4 {[%clk 0:02:57]}  cxd4 {[%clk 0:03:01]} 4. Nxd4 {[%clk 0:02:57]}  d5 {[%clk 0:02:58]} 5. Nxc6 {[%clk 0:02:45]}  bxc6 {[%clk 0:02:58]} 6. Nc3 {[%clk 0:02:41]}  d4 {[%clk 0:02:51]} 7. Ne2 {[%clk 0:02:39]}  e5 {[%clk 0:02:48]} 8. Ng3 {[%clk 0:02:38]}  Nf6 {[%clk 0:02:40]} 9. Bd3 {[%clk 0:02:37]}  h5 {[%clk 0:02:34]} 10. Bg5 {[%clk 0:02:27]}  h4 {[%clk 0:02:32]} 11. Nf5 {[%clk 0:02:26]}  Bxf5 {[%clk 0:02:28]} 12. exf5 {[%clk 0:02:25]}  Bb4+ {[%clk 0:02:14]} 13. Kf1 {[%clk 0:02:19]}  h3 {[%clk 0:02:08]} 14. Qf3 {[%clk 0:02:09]}  hxg2+ {[%clk 0:02:07]} 15. Kxg2 {[%clk 0:01:59]}  Qd5 {[%clk 0:01:59]} 16. Bxf6 {[%clk 0:01:57]}  Qxf3+ {[%clk 0:01:57]} 17. Kxf3 {[%clk 0:01:56]}  gxf6 {[%clk 0:01:58]} 18. h4 {[%clk 0:01:53]}  Ke7 {[%clk 0:01:51]} 19. Rag1 {[%clk 0:01:52]}  Bd2 {[%clk 0:01:43]} 20. Be4 {[%clk 0:01:43]}  Rab8 {[%clk 0:01:40]} 21. b3 {[%clk 0:01:39]}  c5 {[%clk 0:01:37]} 22. Bd3 {[%clk 0:01:27]}  Rh5 {[%clk 0:01:27]} 23. a4 {[%clk 0:01:25]}  Rbh8 {[%clk 0:01:17]} 24. Rg4 {[%clk 0:01:22]}  Bg5 {[%clk 0:01:14]} 25. Ke4 {[%clk 0:01:15]}  Kd6 {[%clk 0:01:00]} 26. Bf1 {[%clk 0:01:11]}  Bxh4 {[%clk 0:00:53]} 27. Bc4 {[%clk 0:01:04]}  Bxf2 {[%clk 0:00:42]} 28. Rxh5 {[%clk 0:00:59]}  Rxh5 {[%clk 0:00:43]} 29. Bxf7 {[%clk 0:00:38]}  Rh3 {[%clk 0:00:44]} 0-1

[Event "January 2 Early 2024"]
[Site "https://www.chess.com"]
[Date "2024.01.02"]
[Round "3"]
[White "Garrido, Denis"]
[Black "Erigaisi Arjun"]
[Result "0-1"]
[Board "172"]
[TimeControl "180+1"]
[WhiteFideId "601217"]
[BlackFideId "35009192"]
[WhiteElo "2400"]
[BlackElo "3063"]
[WhiteTeam "FRA"]
[BlackTeam "IND"]
[WhiteClock "0:01:54"]
[BlackClock "0:01:59"]

1. d4 {[%clk 0:03:00]}  b6 {[%clk 0:02:58]} 2. e4 {[%clk 0:03:00]}  Bb7 {[%clk 0:02:58]} 3. Bd3 {[%clk 0:03:00]}  e6 {[%clk 0:02:58]} 4. Qe2 {[%clk 0:02:55]}  Nf6 {[%clk 0:02:54]} 5. Nd2 {[%clk 0:02:53]}  d5 {[%clk 0:02:54]} 6. e5 {[%clk 0:02:53]}  Nfd7 {[%clk 0:02:53]} 7. f4 {[%clk 0:02:53]}  c5 {[%clk 0:02:53]} 8. c3 {[%clk 0:02:53]}  Nc6 {[%clk 0:02:49]} 9. Ngf3 {[%clk 0:02:53]}  cxd4 {[%clk 0:02:50]} 10. Nxd4 {[%clk 0:02:53]}  Bc5 {[%clk 0:02:47]} 11. N2f3 {[%clk 0:02:51]}  Bxd4 {[%clk 0:02:44]} 12. cxd4 {[%clk 0:02:38]}  Nb4 {[%clk 0:02:44]} 13. Bb5 {[%clk 0:02:36]}  Bc6 {[%clk 0:02:09]} 14. a3 {[%clk 0:02:28]}  Bxb5 {[%clk 0:02:08]} 15. Qxb5 {[%clk 0:02:27]}  Nc2+ {[%clk 0:02:09]} 16. Ke2 {[%clk 0:02:23]}  Nxa1 {[%clk 0:02:10]} 17. Bd2 {[%clk 0:02:12]}  Nc2 {[%clk 0:02:09]} 18. Rc1 {[%clk 0:02:11]}  Rc8 {[%clk 0:02:09]} 19. Qa4 {[%clk 0:02:10]}  Nxd4+ {[%clk 0:01:58]} 20. Qxd4 {[%clk 0:02:02]}  Rxc1 {[%clk 0:01:59]} 21. Bxc1 {[%clk 0:01:54]}  Qc7 {[%clk 0:01:59]} 0-1

[Event "January 2 Early 2024"]
[Site "https://www.chess.com"]
[Date "2024.01.02"]
[Round "3"]
[White "Gomez Falagan, Daniel"]
[Black "Aaditya Dhingra"]
[Result "0-1"]
[Board "174"]
[TimeControl "180+1"]
[WhiteFideId "54509947"]
[BlackFideId "25678191"]
[WhiteElo "2359"]
[BlackElo "2608"]
[WhiteTeam "ESP"]
[BlackTeam "IND"]
[WhiteClock "0:00:06"]
[BlackClock "0:00:05"]

1. Nf3 {[%clk 0:03:00]}  Nf6 {[%clk 0:02:56]} 2. b3 {[%clk 0:03:00]}  c5 {[%clk 0:02:56]} 3. Bb2 {[%clk 0:03:01]}  Nc6 {[%clk 0:02:57]} 4. e3 {[%clk 0:02:59]}  g6 {[%clk 0:02:57]} 5. c4 {[%clk 0:02:58]}  Bg7 {[%clk 0:02:56]} 6. Nc3 {[%clk 0:02:57]}  O-O {[%clk 0:02:56]} 7. Be2 {[%clk 0:02:57]}  d5 {[%clk 0:02:57]} 8. cxd5 {[%clk 0:02:54]}  Nxd5 {[%clk 0:02:57]} 9. O-O {[%clk 0:02:54]}  Bf5 {[%clk 0:02:48]} 10. a3 {[%clk 0:02:41]}  Nxc3 {[%clk 0:02:42]} 11. Bxc3 {[%clk 0:02:42]}  e5 {[%clk 0:02:20]} 12. d3 {[%clk 0:02:39]}  e4 {[%clk 0:02:08]} 13. dxe4 {[%clk 0:02:33]}  Bxc3 {[%clk 0:02:02]} 14. exf5 {[%clk 0:02:33]}  Bxa1 {[%clk 0:02:01]} 15. Qxa1 {[%clk 0:02:34]}  Qd5 {[%clk 0:01:50]} 16. fxg6 {[%clk 0:02:08]}  hxg6 {[%clk 0:01:49]} 17. Bc4 {[%clk 0:02:07]}  Qf5 {[%clk 0:01:44]} 18. Re1 {[%clk 0:01:58]}  Rfe8 {[%clk 0:01:41]} 19. Qc3 {[%clk 0:01:31]}  Rad8 {[%clk 0:01:38]} 20. h3 {[%clk 0:01:27]}  Ne5 {[%clk 0:01:35]} 21. Nxe5 {[%clk 0:01:18]}  Qxe5 {[%clk 0:01:36]} 22. Qc2 {[%clk 0:01:16]}  Kg7 {[%clk 0:01:32]} 23. Qe2 {[%clk 0:01:09]}  b6 {[%clk 0:01:27]} 24. Qf3 {[%clk 0:01:08]}  Qf6 {[%clk 0:01:26]} 25. Qg3 {[%clk 0:01:00]}  Rd2 {[%clk 0:01:21]} 26. e4 {[%clk 0:01:00]}  Qe5 {[%clk 0:01:12]} 27. Qf3 {[%clk 0:00:58]}  f6 {[%clk 0:01:10]} 28. Re3 {[%clk 0:00:55]}  Red8 {[%clk 0:01:03]} 29. g3 {[%clk 0:00:54]}  Rd1+ {[%clk 0:01:02]} 30. Kg2 {[%clk 0:00:55]}  Rc1 {[%clk 0:00:50]} 31. Rd3 {[%clk 0:00:46]}  Rxd3 {[%clk 0:00:47]} 32. Qxd3 {[%clk 0:00:47]}  Qd4 {[%clk 0:00:46]} 33. Qf3 {[%clk 0:00:47]}  Re1 {[%clk 0:00:34]} 34. Bd5 {[%clk 0:00:26]}  Rd1 {[%clk 0:00:30]} 35. Qf4 {[%clk 0:00:22]}  Qe5 {[%clk 0:00:25]} 36. Qf3 {[%clk 0:00:18]}  Rd4 {[%clk 0:00:25]} 37. Bc6 {[%clk 0:00:14]}  Rd6 {[%clk 0:00:23]} 38. Bd5 {[%clk 0:00:14]}  f5 {[%clk 0:00:23]} 39. Bb7 {[%clk 0:00:14]}  Rf6 {[%clk 0:00:21]} 40. exf5 {[%clk 0:00:12]}  Rxf5 {[%clk 0:00:17]} 41. Qd3 {[%clk 0:00:12]}  Qd4 {[%clk 0:00:16]} 42. Qe2 {[%clk 0:00:10]}  Re5 {[%clk 0:00:16]} 43. Qf3 {[%clk 0:00:09]}  Re7 {[%clk 0:00:16]} 44. Bd5 {[%clk 0:00:08]}  Qf6 {[%clk 0:00:16]} 45. Qd3 {[%clk 0:00:06]}  Rd7 {[%clk 0:00:15]} 46. Qe4 {[%clk 0:00:06]}  Qd4 {[%clk 0:00:15]} 47. Qxd4+ {[%clk 0:00:03]}  cxd4 {[%clk 0:00:14]} 48. Bf3 {[%clk 0:00:04]}  d3 {[%clk 0:00:15]} 49. Bd1 {[%clk 0:00:04]}  d2 {[%clk 0:00:14]} 50. Kf3 {[%clk 0:00:05]}  Re7 {[%clk 0:00:14]} 51. Be2 {[%clk 0:00:03]}  Kf6 {[%clk 0:00:14]} 52. h4 {[%clk 0:00:03]}  b5 {[%clk 0:00:14]} 53. b4 {[%clk 0:00:02]}  Re5 {[%clk 0:00:08]} 54. g4 {[%clk 0:00:02]}  Ke6 {[%clk 0:00:08]} 55. g5 {[%clk 0:00:02]}  Kd5 {[%clk 0:00:07]} 56. Bd1 {[%clk 0:00:02]}  Kd4 {[%clk 0:00:07]} 57. Be2 {[%clk 0:00:02]}  Kc3 {[%clk 0:00:07]} 58. Bd1 {[%clk 0:00:02]}  Re1 {[%clk 0:00:06]} 59. Be2 {[%clk 0:00:02]}  d1=Q {[%clk 0:00:06]} 60. Bxd1 {[%clk 0:00:03]}  Rxd1 {[%clk 0:00:06]} 61. h5 {[%clk 0:00:04]}  gxh5 {[%clk 0:00:06]} 62. Kg3 {[%clk 0:00:04]}  Rg1+ {[%clk 0:00:06]} 63. Kh4 {[%clk 0:00:04]}  Rh1+ {[%clk 0:00:06]} 64. Kg3 {[%clk 0:00:05]}  Kd4 {[%clk 0:00:06]} 65. f4 {[%clk 0:00:05]}  Ke4 {[%clk 0:00:06]} 66. Kg2 {[%clk 0:00:06]}  Rd1 {[%clk 0:00:05]} 67. g6 {[%clk 0:00:06]}  Rd8 {[%clk 0:00:05]} 0-1

[Event "January 2 Early 2024"]
[Site "https://www.chess.com"]
[Date "2024.01.02"]
[Round "3"]
[White "Munoz Sanchez, Miguel"]
[Black "Ljukin, Sergei"]
[Result "0-1"]
[Board "176"]
[TimeControl "180+1"]
[WhiteFideId "3600734"]
[BlackFideId "14102200"]
[WhiteElo "2313"]
[BlackElo "2523"]
[WhiteTeam "ECU"]
[BlackTeam "UKR"]
[WhiteClock "0:00:29"]
[BlackClock "0:01:12"]

1. e4 {[%clk 0:02:57]}  e6 {[%clk 0:02:59]} 2. d4 {[%clk 0:02:56]}  d5 {[%clk 0:02:59]} 3. exd5 {[%clk 0:02:56]}  exd5 {[%clk 0:02:59]} 4. Nf3 {[%clk 0:02:57]}  Nf6 {[%clk 0:03:00]} 5. h3 {[%clk 0:02:57]}  c5 {[%clk 0:03:00]} 6. c4 {[%clk 0:02:55]}  Nc6 {[%clk 0:02:54]} 7. Nc3 {[%clk 0:02:53]}  cxd4 {[%clk 0:02:42]} 8. Nxd4 {[%clk 0:02:47]}  Bc5 {[%clk 0:02:41]} 9. Be3 {[%clk 0:02:43]}  Nxd4 {[%clk 0:02:31]} 10. Bxd4 {[%clk 0:02:43]}  Qe7+ {[%clk 0:02:31]} 11. Be2 {[%clk 0:02:40]}  dxc4 {[%clk 0:02:30]} 12. O-O {[%clk 0:02:38]}  Be6 {[%clk 0:02:30]} 13. Qa4+ {[%clk 0:02:26]}  Nd7 {[%clk 0:02:30]} 14. Bxc5 {[%clk 0:02:22]}  Qxc5 {[%clk 0:02:29]} 15. Ne4 {[%clk 0:02:21]}  Qe5 {[%clk 0:02:17]} 16. Nc3 {[%clk 0:01:44]}  O-O {[%clk 0:02:05]} 17. Bxc4 {[%clk 0:01:44]}  Nb6 {[%clk 0:02:04]} 18. Qb5 {[%clk 0:01:27]}  Nxc4 {[%clk 0:02:04]} 19. Qxb7 {[%clk 0:01:27]}  Rfb8 {[%clk 0:01:54]} 20. Qe7 {[%clk 0:01:24]}  Rxb2 {[%clk 0:01:44]} 21. Na4 {[%clk 0:01:21]}  Rbb8 {[%clk 0:01:27]} 22. Rad1 {[%clk 0:01:19]}  Re8 {[%clk 0:01:24]} 23. Qb7 {[%clk 0:01:17]}  Qa5 {[%clk 0:01:15]} 24. Nb2 {[%clk 0:01:05]}  Rab8 {[%clk 0:01:15]} 25. Nxc4 {[%clk 0:01:05]}  Bxc4 {[%clk 0:01:15]} 26. Qf3 {[%clk 0:00:53]}  Bxf1 {[%clk 0:01:14]} 27. Kxf1 {[%clk 0:00:54]}  Qxa2 {[%clk 0:01:14]} 28. Kg1 {[%clk 0:00:29]}  Qe2 {[%clk 0:01:12]} 0-1

[Event "January 2 Early 2024"]
[Site "https://www.chess.com"]
[Date "2024.01.02"]
[Round "3"]
[White "Bogumil, Tatiana"]
[Black "Devaev, Alexander"]
[Result "0-1"]
[Board "178"]
[TimeControl "180+1"]
[WhiteFideId "4110579"]
[BlackFideId "4169395"]
[WhiteElo "2004"]
[BlackElo "2507"]
[WhiteTeam "RUS"]
[BlackTeam "RUS"]
[WhiteClock "0:00:00"]
[BlackClock "0:01:24"]

1. Nf3 {[%clk 0:02:59]}  Nf6 {[%clk 0:02:59]} 2. c4 {[%clk 0:02:58]}  c5 {[%clk 0:02:59]} 3. b3 {[%clk 0:02:58]}  e6 {[%clk 0:03:00]} 4. Bb2 {[%clk 0:02:59]}  b6 {[%clk 0:03:00]} 5. g3 {[%clk 0:02:59]}  Bb7 {[%clk 0:03:01]} 6. Bg2 {[%clk 0:03:00]}  Be7 {[%clk 0:03:01]} 7. O-O {[%clk 0:02:59]}  O-O {[%clk 0:03:01]} 8. d4 {[%clk 0:02:55]}  d6 {[%clk 0:03:01]} 9. Nc3 {[%clk 0:02:54]}  a6 {[%clk 0:03:01]} 10. Re1 {[%clk 0:02:54]}  Qc7 {[%clk 0:02:59]} 11. e4 {[%clk 0:02:54]}  cxd4 {[%clk 0:03:00]} 12. Nxd4 {[%clk 0:02:52]}  Nbd7 {[%clk 0:03:00]} 13. Qd2 {[%clk 0:02:50]}  Ne5 {[%clk 0:03:00]} 14. Rac1 {[%clk 0:02:42]}  Rfe8 {[%clk 0:02:59]} 15. h3 {[%clk 0:02:33]}  Bf8 {[%clk 0:02:57]} 16. Kh2 {[%clk 0:02:33]}  Rac8 {[%clk 0:02:56]} 17. f4 {[%clk 0:02:31]}  Ng6 {[%clk 0:02:55]} 18. Ba3 {[%clk 0:02:23]}  Nd7 {[%clk 0:02:55]} 19. h4 {[%clk 0:02:09]}  Be7 {[%clk 0:02:46]} 20. h5 {[%clk 0:02:05]}  Ngf8 {[%clk 0:02:47]} 21. Nf3 {[%clk 0:01:57]}  h6 {[%clk 0:02:46]} 22. Re2 {[%clk 0:01:34]}  Nf6 {[%clk 0:02:46]} 23. Rd1 {[%clk 0:01:30]}  Rcd8 {[%clk 0:02:41]} 24. Qe1 {[%clk 0:01:23]}  Nxh5 {[%clk 0:02:40]} 25. Red2 {[%clk 0:01:13]}  Nf6 {[%clk 0:02:38]} 26. Nd4 {[%clk 0:01:07]}  b5 {[%clk 0:02:32]} 27. Bf1 {[%clk 0:00:42]}  bxc4 {[%clk 0:02:30]} 28. Bxc4 {[%clk 0:00:42]}  d5 {[%clk 0:02:27]} 29. Bxe7 {[%clk 0:00:39]}  Qxe7 {[%clk 0:02:26]} 30. exd5 {[%clk 0:00:36]}  Nxd5 {[%clk 0:02:26]} 31. Nxd5 {[%clk 0:00:26]}  Bxd5 {[%clk 0:02:27]} 32. Bxd5 {[%clk 0:00:26]}  Rxd5 {[%clk 0:02:27]} 33. Nf3 {[%clk 0:00:26]}  Rxd2+ {[%clk 0:02:25]} 34. Rxd2 {[%clk 0:00:27]}  Qc5 {[%clk 0:02:19]} 35. Qe5 {[%clk 0:00:22]}  Qc1 {[%clk 0:02:14]} 36. Qb2 {[%clk 0:00:19]}  Qc5 {[%clk 0:01:55]} 37. Ne5 {[%clk 0:00:15]}  Rc8 {[%clk 0:01:54]} 38. Nc4 {[%clk 0:00:11]}  Ng6 {[%clk 0:01:51]} 39. Qd4 {[%clk 0:00:11]}  Qh5+ {[%clk 0:01:48]} 40. Kg2 {[%clk 0:00:09]}  Qg4 {[%clk 0:01:35]} 41. Ne3 {[%clk 0:00:00]}  Nh4+ {[%clk 0:01:24]} 0-1

[Event "January 2 Early 2024"]
[Site "https://www.chess.com"]
[Date "2024.01.02"]
[Round "3"]
[White "Alonso Garcia, Rene Marcial"]
[Black "Rama, Tejas"]
[Result "0-1"]
[Board "183"]
[TimeControl "180+1"]
[WhiteFideId "3500276"]
[BlackFideId "30907381"]
[WhiteElo "2288"]
[BlackElo "2581"]
[WhiteTeam "FID"]
[BlackTeam "USA"]
[WhiteClock "0:00:09"]
[BlackClock "0:00:19"]

1. d4 {[%clk 0:03:00]}  Nf6 {[%clk 0:02:59]} 2. c4 {[%clk 0:02:59]}  e6 {[%clk 0:02:59]} 3. Nf3 {[%clk 0:02:57]}  d5 {[%clk 0:02:58]} 4. Nc3 {[%clk 0:02:54]}  c5 {[%clk 0:02:58]} 5. cxd5 {[%clk 0:02:52]}  Nxd5 {[%clk 0:02:59]} 6. e3 {[%clk 0:02:51]}  Nc6 {[%clk 0:02:58]} 7. Bd3 {[%clk 0:02:50]}  Be7 {[%clk 0:02:58]} 8. O-O {[%clk 0:02:49]}  O-O {[%clk 0:02:58]} 9. a3 {[%clk 0:02:44]}  cxd4 {[%clk 0:02:55]} 10. exd4 {[%clk 0:02:43]}  Bf6 {[%clk 0:02:53]} 11. Be4 {[%clk 0:02:42]}  Nce7 {[%clk 0:02:51]} 12. Re1 {[%clk 0:02:41]}  b6 {[%clk 0:02:49]} 13. Qd3 {[%clk 0:02:37]}  h6 {[%clk 0:02:45]} 14. Ne5 {[%clk 0:02:33]}  Bxe5 {[%clk 0:02:32]} 15. dxe5 {[%clk 0:02:31]}  Bb7 {[%clk 0:02:31]} 16. Qg3 {[%clk 0:02:28]}  Nxc3 {[%clk 0:02:18]} 17. Bxh6 {[%clk 0:02:22]}  Ng6 {[%clk 0:01:54]} 18. Bxg6 {[%clk 0:02:19]}  gxh6 {[%clk 0:01:39]} 19. Be4+ {[%clk 0:02:12]}  Qg5 {[%clk 0:01:33]} 20. Bxb7 {[%clk 0:02:05]}  Rab8 {[%clk 0:01:29]} 21. Qxc3 {[%clk 0:02:00]}  Rxb7 {[%clk 0:01:29]} 22. Re3 {[%clk 0:02:00]}  Kh8 {[%clk 0:01:27]} 23. Rg3 {[%clk 0:01:56]}  Qf5 {[%clk 0:01:24]} 24. Qe3 {[%clk 0:01:51]}  Kh7 {[%clk 0:01:23]} 25. Qd3 {[%clk 0:01:49]}  Qxd3 {[%clk 0:01:21]} 26. Rxd3 {[%clk 0:01:48]}  Rc8 {[%clk 0:01:19]} 27. g3 {[%clk 0:01:41]}  Rc2 {[%clk 0:01:15]} 28. b4 {[%clk 0:01:39]}  Re2 {[%clk 0:01:10]} 29. Rad1 {[%clk 0:01:33]}  Rxe5 {[%clk 0:01:04]} 30. Rd7 {[%clk 0:01:30]}  Re1+ {[%clk 0:00:57]} 31. Kg2 {[%clk 0:01:30]}  Rxd7 {[%clk 0:00:53]} 32. Rxd7 {[%clk 0:01:29]}  Kg6 {[%clk 0:00:50]} 33. Rxa7 {[%clk 0:01:28]}  Ra1 {[%clk 0:00:49]} 34. Ra6 {[%clk 0:01:26]}  b5 {[%clk 0:00:47]} 35. Ra5 {[%clk 0:01:25]}  f6 {[%clk 0:00:45]} 36. h4 {[%clk 0:01:23]}  e5 {[%clk 0:00:43]} 37. Kf3 {[%clk 0:01:17]}  Rb1 {[%clk 0:00:33]} 38. Rxb5 {[%clk 0:01:11]}  Rb3+ {[%clk 0:00:31]} 39. Ke4 {[%clk 0:01:06]}  Rxa3 {[%clk 0:00:32]} 40. Rb8 {[%clk 0:01:03]}  Ra2 {[%clk 0:00:29]} 41. f3 {[%clk 0:00:56]}  Re2+ {[%clk 0:00:24]} 42. Kd3 {[%clk 0:00:50]}  Rg2 {[%clk 0:00:23]} 43. g4 {[%clk 0:00:48]}  Rh2 {[%clk 0:00:22]} 44. h5+ {[%clk 0:00:45]}  Kg5 {[%clk 0:00:21]} 45. Ke3 {[%clk 0:00:44]}  Rb2 {[%clk 0:00:20]} 46. b5 {[%clk 0:00:38]}  Rb3+ {[%clk 0:00:19]} 47. Ke4 {[%clk 0:00:37]}  Rb4+ {[%clk 0:00:19]} 48. Kd5 {[%clk 0:00:36]}  Kf4 {[%clk 0:00:19]} 49. Ke6 {[%clk 0:00:29]}  Kxf3 {[%clk 0:00:19]} 50. Kxf6 {[%clk 0:00:30]}  e4 {[%clk 0:00:19]} 51. Kg6 {[%clk 0:00:29]}  e3 {[%clk 0:00:19]} 52. Kxh6 {[%clk 0:00:23]}  e2 {[%clk 0:00:19]} 53. Rf8+ {[%clk 0:00:20]}  Rf4 {[%clk 0:00:20]} 54. Re8 {[%clk 0:00:18]}  Re4 {[%clk 0:00:20]} 55. Rf8+ {[%clk 0:00:18]}  Kg3 {[%clk 0:00:20]} 56. b6 {[%clk 0:00:17]}  e1=Q {[%clk 0:00:20]} 57. b7 {[%clk 0:00:16]}  Re6+ {[%clk 0:00:21]} 58. Kh7 {[%clk 0:00:16]}  Re7+ {[%clk 0:00:21]} 59. Kh6 {[%clk 0:00:15]}  Qe3+ {[%clk 0:00:20]} 60. g5 {[%clk 0:00:09]}  Rxb7 {[%clk 0:00:19]} 0-1

[Event "January 2 Early 2024"]
[Site "https://www.chess.com"]
[Date "2024.01.02"]
[Round "3"]
[White "SkinnyPuppy8"]
[Black "Volkov, Sergei"]
[Result "1/2-1/2"]
[Board "185"]
[TimeControl "180+1"]
[BlackFideId "4176588"]
[WhiteElo "2283"]
[BlackElo "2551"]
[BlackTeam "RUS"]
[WhiteClock "0:00:03"]
[BlackClock "0:00:03"]

1. e4 {[%clk 0:02:59]}  c5 {[%clk 0:02:59]} 2. Nf3 {[%clk 0:02:59]}  d6 {[%clk 0:03:00]} 3. c3 {[%clk 0:02:59]}  Nf6 {[%clk 0:02:59]} 4. Be2 {[%clk 0:02:59]}  g6 {[%clk 0:02:59]} 5. O-O {[%clk 0:02:59]}  Bg7 {[%clk 0:02:59]} 6. Bb5+ {[%clk 0:03:00]}  Bd7 {[%clk 0:02:46]} 7. Bxd7+ {[%clk 0:02:59]}  Nbxd7 {[%clk 0:02:40]} 8. Re1 {[%clk 0:03:00]}  O-O {[%clk 0:02:39]} 9. d4 {[%clk 0:02:58]}  e6 {[%clk 0:02:14]} 10. Na3 {[%clk 0:02:45]}  cxd4 {[%clk 0:02:11]} 11. cxd4 {[%clk 0:02:42]}  d5 {[%clk 0:02:05]} 12. e5 {[%clk 0:02:34]}  Ne4 {[%clk 0:02:05]} 13. Nd2 {[%clk 0:02:30]}  Nxd2 {[%clk 0:01:49]} 14. Bxd2 {[%clk 0:02:27]}  a6 {[%clk 0:01:43]} 15. Qb3 {[%clk 0:02:11]}  Qb6 {[%clk 0:01:34]} 16. Qxb6 {[%clk 0:02:05]}  Nxb6 {[%clk 0:01:35]} 17. Rac1 {[%clk 0:02:02]}  Rfc8 {[%clk 0:01:31]} 18. b3 {[%clk 0:02:00]}  Bf8 {[%clk 0:01:24]} 19. Nb1 {[%clk 0:01:51]}  Nd7 {[%clk 0:01:21]} 20. Kf1 {[%clk 0:01:35]}  Be7 {[%clk 0:01:16]} 21. Ke2 {[%clk 0:01:33]}  f6 {[%clk 0:01:09]} 22. f4 {[%clk 0:01:22]}  fxe5 {[%clk 0:01:08]} 23. fxe5 {[%clk 0:01:21]}  Kg7 {[%clk 0:01:04]} 24. Nc3 {[%clk 0:01:10]}  Rc6 {[%clk 0:00:59]} 25. Kd3 {[%clk 0:00:51]}  Ba3 {[%clk 0:00:53]} 26. Rb1 {[%clk 0:00:49]}  Bb4 {[%clk 0:00:34]} 27. Rbc1 {[%clk 0:00:36]}  Rac8 {[%clk 0:00:31]} 28. Ne2 {[%clk 0:00:36]}  Ba3 {[%clk 0:00:24]} 29. Rxc6 {[%clk 0:00:36]}  Rxc6 {[%clk 0:00:25]} 30. Rf1 {[%clk 0:00:34]}  Be7 {[%clk 0:00:22]} 31. Nf4 {[%clk 0:00:31]}  Nf8 {[%clk 0:00:20]} 32. g3 {[%clk 0:00:29]}  h6 {[%clk 0:00:20]} 33. h4 {[%clk 0:00:29]}  b5 {[%clk 0:00:13]} 34. Rc1 {[%clk 0:00:27]}  Rxc1 {[%clk 0:00:12]} 35. Bxc1 {[%clk 0:00:28]}  g5 {[%clk 0:00:09]} 36. hxg5 {[%clk 0:00:26]}  Bxg5 {[%clk 0:00:06]} 37. Ne2 {[%clk 0:00:17]}  Kg6 {[%clk 0:00:04]} 38. Bf4 {[%clk 0:00:16]}  Kf5 {[%clk 0:00:03]} 39. Ke3 {[%clk 0:00:15]}  Kg4 {[%clk 0:00:04]} 40. Nc3 {[%clk 0:00:11]}  Bxf4+ {[%clk 0:00:01]} 41. gxf4 {[%clk 0:00:11]}  Ng6 {[%clk 0:00:02]} 42. f5 {[%clk 0:00:08]}  Kxf5 {[%clk 0:00:01]} 43. a4 {[%clk 0:00:08]}  bxa4 {[%clk 0:00:01]} 44. Nxa4 {[%clk 0:00:08]}  h5 {[%clk 0:00:01]} 45. Nc5 {[%clk 0:00:08]}  a5 {[%clk 0:00:02]} 46. Nb7 {[%clk 0:00:08]}  h4 {[%clk 0:00:03]} 47. Kf3 {[%clk 0:00:07]}  h3 {[%clk 0:00:03]} 48. Nxa5 {[%clk 0:00:07]}  h2 {[%clk 0:00:02]} 49. Kg2 {[%clk 0:00:07]}  Ke4 {[%clk 0:00:02]} 50. Nc6 {[%clk 0:00:06]}  Kd3 {[%clk 0:00:01]} 51. Nb4+ {[%clk 0:00:05]}  Kxd4 {[%clk 0:00:01]} 52. Nc6+ {[%clk 0:00:06]}  Kc3 {[%clk 0:00:01]} 53. b4 {[%clk 0:00:06]}  Kc4 {[%clk 0:00:01]} 54. Kxh2 {[%clk 0:00:05]}  d4 {[%clk 0:00:02]} 55. Kg2 {[%clk 0:00:05]}  d3 {[%clk 0:00:02]} 56. Kf2 {[%clk 0:00:05]}  Kc3 {[%clk 0:00:02]} 57. Ke1 {[%clk 0:00:04]}  Kc2 {[%clk 0:00:02]} 58. Nd4+ {[%clk 0:00:03]}  Kc3 {[%clk 0:00:02]} 59. Nxe6 {[%clk 0:00:03]}  Nxe5 {[%clk 0:00:02]} 60. Nf4 {[%clk 0:00:02]}  d2+ {[%clk 0:00:02]} 61. Kd1 {[%clk 0:00:02]}  Nc4 {[%clk 0:00:03]} 62. Ne2+ {[%clk 0:00:02]}  Kd3 {[%clk 0:00:03]} 63. Nf4+ {[%clk 0:00:03]}  Ke3 {[%clk 0:00:03]} 64. Nd5+ {[%clk 0:00:02]}  Kd4 {[%clk 0:00:03]} 65. Nf4 {[%clk 0:00:02]}  Ke3 {[%clk 0:00:02]} 66. Nd5+ {[%clk 0:00:01]}  Kd4 {[%clk 0:00:03]} 67. Nf4 {[%clk 0:00:02]}  Kc3 {[%clk 0:00:03]} 68. Nd5+ {[%clk 0:00:02]}  Kb3 {[%clk 0:00:03]} 69. Ne3 {[%clk 0:00:02]}  Nxe3+ {[%clk 0:00:02]} 70. Kxd2 {[%clk 0:00:02]}  Nc4+ {[%clk 0:00:02]} 71. Kd3 {[%clk 0:00:03]}  Kxb4 {[%clk 0:00:03]} 1/2-1/2

[Event "January 2 Early 2024"]
[Site "https://www.chess.com"]
[Date "2024.01.02"]
[Round "3"]
[White "Sava, Christiansen-Danut-Eugen"]
[Black "Dushyant Sharma"]
[Result "0-1"]
[Board "188"]
[TimeControl "180+1"]
[WhiteFideId "1210114"]
[BlackFideId "25065130"]
[WhiteElo "2269"]
[BlackElo "2523"]
[WhiteTeam "ROU"]
[BlackTeam "IND"]
[WhiteClock "0:00:19"]
[BlackClock "0:02:04"]

1. d4 {[%clk 0:03:00]}  d5 {[%clk 0:03:00]} 2. c4 {[%clk 0:02:59]}  e6 {[%clk 0:03:00]} 3. Nf3 {[%clk 0:03:00]}  Nf6 {[%clk 0:02:59]} 4. g3 {[%clk 0:02:55]}  Be7 {[%clk 0:03:00]} 5. Bg2 {[%clk 0:02:55]}  O-O {[%clk 0:03:00]} 6. O-O {[%clk 0:02:54]}  dxc4 {[%clk 0:03:01]} 7. Qa4 {[%clk 0:02:52]}  c5 {[%clk 0:03:01]} 8. Qxc4 {[%clk 0:02:52]}  Nc6 {[%clk 0:03:01]} 9. dxc5 {[%clk 0:02:50]}  e5 {[%clk 0:03:02]} 10. Nc3 {[%clk 0:01:53]}  Be6 {[%clk 0:03:02]} 11. Qa4 {[%clk 0:01:53]}  Bxc5 {[%clk 0:03:01]} 12. Bg5 {[%clk 0:01:52]}  Be7 {[%clk 0:03:01]} 13. Rfd1 {[%clk 0:01:51]}  Qb6 {[%clk 0:02:58]} 14. Qb5 {[%clk 0:01:47]}  Qc7 {[%clk 0:02:57]} 15. Rac1 {[%clk 0:01:46]}  Rfd8 {[%clk 0:02:51]} 16. Bxf6 {[%clk 0:01:37]}  Bxf6 {[%clk 0:02:50]} 17. Ne4 {[%clk 0:01:34]}  Be7 {[%clk 0:02:50]} 18. a3 {[%clk 0:01:26]}  a6 {[%clk 0:02:49]} 19. Qa4 {[%clk 0:01:26]}  Qb6 {[%clk 0:02:47]} 20. b4 {[%clk 0:01:23]}  h6 {[%clk 0:02:44]} 21. Nc5 {[%clk 0:01:23]}  Bxc5 {[%clk 0:02:42]} 22. Rxc5 {[%clk 0:01:24]}  e4 {[%clk 0:02:33]} 23. Ne1 {[%clk 0:01:18]}  e3 {[%clk 0:02:31]} 24. f3 {[%clk 0:01:15]}  Nd4 {[%clk 0:02:32]} 25. Rxd4 {[%clk 0:01:09]}  Rxd4 {[%clk 0:02:31]} 26. Nd3 {[%clk 0:01:10]}  Rad8 {[%clk 0:02:25]} 27. Qc2 {[%clk 0:01:09]}  a5 {[%clk 0:02:15]} 28. f4 {[%clk 0:01:08]}  axb4 {[%clk 0:02:07]} 29. axb4 {[%clk 0:01:08]}  Bg4 {[%clk 0:02:07]} 30. h3 {[%clk 0:00:28]}  Bxe2 {[%clk 0:02:06]} 31. Qxe2 {[%clk 0:00:29]}  Rxd3 {[%clk 0:02:06]} 32. Rc4 {[%clk 0:00:23]}  Rd2 {[%clk 0:02:04]} 33. Qg4 {[%clk 0:00:20]}  e2+ {[%clk 0:02:04]} 34. Kh2 {[%clk 0:00:19]}  e1=Q {[%clk 0:02:04]} 0-1